[Event "Titled Tuesday Blitz May 4 2021"]
[White "Piesik, Piotr"]
[Black "Chandratreya, Prachiti"]
[WhiteFideId "1136194"]
[BlackFideId "46611215"]
[WhiteElo "2369"]
[BlackElo "1737"]
[Result "1-0"]
[Round "01"]
[TimeControl "180+1"]
[Date "2021.05.04"]
[WhiteClock "0:01:31"]
[BlackClock "0:01:08"]

1. Nf3 {[%clk 0:03:00]}  Nf6 {[%clk 0:02:58]} 2. g3 {[%clk 0:03:00]}  g6 {[%clk 0:02:58]} 3. Bg2 {[%clk 0:03:00]}  Bg7 {[%clk 0:02:57]} 4. O-O {[%clk 0:03:01]}  O-O {[%clk 0:02:58]} 5. d4 {[%clk 0:03:02]}  d6 {[%clk 0:02:59]} 6. Nbd2 {[%clk 0:03:01]}  Nc6 {[%clk 0:02:58]} 7. e4 {[%clk 0:03:02]}  a6 {[%clk 0:02:57]} 8. Qe2 {[%clk 0:03:01]}  e5 {[%clk 0:02:55]} 9. dxe5 {[%clk 0:03:01]}  dxe5 {[%clk 0:02:54]} 10. c3 {[%clk 0:03:00]}  Qe7 {[%clk 0:02:51]} 11. b4 {[%clk 0:02:59]}  Be6 {[%clk 0:02:49]} 12. a4 {[%clk 0:02:58]}  Rfd8 {[%clk 0:02:45]} 13. Nc4 {[%clk 0:02:58]}  Bg4 {[%clk 0:02:24]} 14. Ba3 {[%clk 0:02:51]}  Qe6 {[%clk 0:02:15]} 15. Rfd1 {[%clk 0:02:44]}  Rxd1+ {[%clk 0:02:12]} 16. Rxd1 {[%clk 0:02:43]}  b5 {[%clk 0:02:10]} 17. Ne3 {[%clk 0:02:40]}  Bxf3 {[%clk 0:02:07]} 18. Bxf3 {[%clk 0:02:39]}  bxa4 {[%clk 0:02:06]} 19. Nd5 {[%clk 0:02:33]}  Rc8 {[%clk 0:02:03]} 20. Qxa6 {[%clk 0:02:30]}  Nd4 {[%clk 0:01:48]} 21. Qxc8+ {[%clk 0:02:27]}  Qxc8 {[%clk 0:01:45]} 22. Ne7+ {[%clk 0:02:27]}  Kf8 {[%clk 0:01:44]} 23. Nxc8 {[%clk 0:02:28]}  Nxf3+ {[%clk 0:01:44]} 24. Kg2 {[%clk 0:02:28]}  Ng5 {[%clk 0:01:44]} 25. b5+ {[%clk 0:02:25]}  Ke8 {[%clk 0:01:43]} 26. f3 {[%clk 0:02:21]}  Ne6 {[%clk 0:01:42]} 27. Na7 {[%clk 0:02:14]}  Nd7 {[%clk 0:01:39]} 28. Nc6 {[%clk 0:02:11]}  Nb6 {[%clk 0:01:39]} 29. Bb4 {[%clk 0:02:05]}  Nc4 {[%clk 0:01:38]} 30. Ra1 {[%clk 0:02:02]}  Nb6 {[%clk 0:01:34]} 31. Ba5 {[%clk 0:01:59]}  Nc4 {[%clk 0:01:31]} 32. Rxa4 {[%clk 0:01:57]}  Ne3+ {[%clk 0:01:27]} 33. Kf2 {[%clk 0:01:55]}  Nd1+ {[%clk 0:01:27]} 34. Ke2 {[%clk 0:01:53]}  Nb2 {[%clk 0:01:27]} 35. Rb4 {[%clk 0:01:52]}  Nd4+ {[%clk 0:01:26]} 36. cxd4 {[%clk 0:01:51]}  exd4 {[%clk 0:01:27]} 37. Rxb2 {[%clk 0:01:41]}  d3+ {[%clk 0:01:27]} 38. Kxd3 {[%clk 0:01:42]}  Bxb2 {[%clk 0:01:27]} 39. Bxc7 {[%clk 0:01:41]}  Kd7 {[%clk 0:01:27]} 40. Be5 {[%clk 0:01:40]}  Ba3 {[%clk 0:01:27]} 41. Bd4 {[%clk 0:01:40]}  Bd6 {[%clk 0:01:25]} 42. e5 {[%clk 0:01:40]}  Bf8 {[%clk 0:01:24]} 43. Ke4 {[%clk 0:01:40]}  Ba3 {[%clk 0:01:22]} 44. Kd5 {[%clk 0:01:40]}  h5 {[%clk 0:01:16]} 45. b6 {[%clk 0:01:39]}  Kc8 {[%clk 0:01:15]} 46. Bc5 {[%clk 0:01:38]}  Kb7 {[%clk 0:01:15]} 47. Bxa3 {[%clk 0:01:37]}  Kxb6 {[%clk 0:01:14]} 48. Nd8 {[%clk 0:01:37]}  Kc7 {[%clk 0:01:13]} 49. Nxf7 {[%clk 0:01:37]}  Kd7 {[%clk 0:01:12]} 50. e6+ {[%clk 0:01:38]}  Ke8 {[%clk 0:01:13]} 51. Nd6+ {[%clk 0:01:38]}  Kd8 {[%clk 0:01:12]} 52. Ne4 {[%clk 0:01:35]}  Ke8 {[%clk 0:01:12]} 53. e7 {[%clk 0:01:33]}  Kf7 {[%clk 0:01:11]} 54. Nf6 {[%clk 0:01:33]}  Kxf6 {[%clk 0:01:10]} 55. e8=Q {[%clk 0:01:33]}  h4 {[%clk 0:01:10]} 56. Qe6+ {[%clk 0:01:32]}  Kg5 {[%clk 0:01:08]} 57. Bc1+ {[%clk 0:01:31]}  Kh5 {[%clk 0:01:08]} 58. g4# {[%clk 0:01:31]} 1-0


[Site "https://www.chess.com"]

[Event "Titled Tuesday Blitz May 4 2021"]
[White "Preotu, Razvan"]
[Black "Estrada Nieto, Julian"]
[WhiteFideId "2613280"]
[BlackFideId "5101018"]
[WhiteElo "2407"]
[BlackElo "2270"]
[Result "1/2-1/2"]
[Round "01"]
[TimeControl "180+1"]
[Date "2021.05.04"]
[WhiteClock "0:02:20"]
[BlackClock "0:01:32"]

1. e4 {[%clk 0:03:00]}  e5 {[%clk 0:02:58]} 2. Nf3 {[%clk 0:03:00]}  Nc6 {[%clk 0:02:57]} 3. Bc4 {[%clk 0:03:00]}  Bc5 {[%clk 0:02:56]} 4. c3 {[%clk 0:03:00]}  d6 {[%clk 0:02:56]} 5. d4 {[%clk 0:02:59]}  exd4 {[%clk 0:02:57]} 6. cxd4 {[%clk 0:02:59]}  Bb6 {[%clk 0:02:57]} 7. Nc3 {[%clk 0:02:58]}  Nf6 {[%clk 0:02:58]} 8. h3 {[%clk 0:02:56]}  O-O {[%clk 0:02:57]} 9. O-O {[%clk 0:02:56]}  Nxe4 {[%clk 0:02:57]} 10. Nxe4 {[%clk 0:02:54]}  d5 {[%clk 0:02:58]} 11. Bd3 {[%clk 0:02:54]}  dxe4 {[%clk 0:02:57]} 12. Bxe4 {[%clk 0:02:55]}  Nxd4 {[%clk 0:02:56]} 13. Nxd4 {[%clk 0:02:55]}  Qxd4 {[%clk 0:02:53]} 14. Qc2 {[%clk 0:02:54]}  h6 {[%clk 0:02:28]} 15. Be3 {[%clk 0:02:46]}  Qf6 {[%clk 0:02:22]} 16. Bxb6 {[%clk 0:02:45]}  Qxb6 {[%clk 0:02:13]} 17. Rfd1 {[%clk 0:02:28]}  Be6 {[%clk 0:02:12]} 18. Rd3 {[%clk 0:02:28]}  Rfd8 {[%clk 0:02:03]} 19. Rad1 {[%clk 0:02:27]}  c6 {[%clk 0:02:00]} 20. Qc3 {[%clk 0:02:24]}  Rxd3 {[%clk 0:01:48]} 21. Rxd3 {[%clk 0:02:25]}  Rd8 {[%clk 0:01:45]} 22. Rg3 {[%clk 0:02:22]}  Qd4 {[%clk 0:01:39]} 23. Rd3 {[%clk 0:02:21]}  Qb6 {[%clk 0:01:39]} 24. Rg3 {[%clk 0:02:21]}  Qd4 {[%clk 0:01:32]} 25. Rd3 {[%clk 0:02:20]}  Qb6 {[%clk 0:01:32]} 1/2-1/2


[Site "https://www.chess.com"]

[Event "Titled Tuesday Blitz May 4 2021"]
[White "Priyanka, K"]
[Black "Sumaneev, Dmitry"]
[WhiteFideId "5082986"]
[BlackFideId "4125312"]
[WhiteElo "1893"]
[BlackElo "2503"]
[Result "1-0"]
[Round "01"]
[TimeControl "180+1"]
[Date "2021.05.04"]
[WhiteClock "0:01:18"]
[BlackClock "0:00:21"]

1. e4 {[%clk 0:03:00]}  e6 {[%clk 0:02:58]} 2. d4 {[%clk 0:02:59]}  d5 {[%clk 0:02:58]} 3. Nc3 {[%clk 0:02:59]}  Nf6 {[%clk 0:02:57]} 4. Bg5 {[%clk 0:02:59]}  Be7 {[%clk 0:02:57]} 5. e5 {[%clk 0:02:58]}  Nfd7 {[%clk 0:02:56]} 6. Bxe7 {[%clk 0:02:59]}  Qxe7 {[%clk 0:02:57]} 7. f4 {[%clk 0:02:59]}  a6 {[%clk 0:02:57]} 8. Nf3 {[%clk 0:02:59]}  c5 {[%clk 0:02:58]} 9. dxc5 {[%clk 0:03:00]}  Qxc5 {[%clk 0:02:56]} 10. Qd2 {[%clk 0:02:57]}  Nc6 {[%clk 0:02:55]} 11. O-O-O {[%clk 0:02:55]}  b5 {[%clk 0:02:56]} 12. Bd3 {[%clk 0:02:53]}  b4 {[%clk 0:02:53]} 13. Ne2 {[%clk 0:02:50]}  a5 {[%clk 0:02:53]} 14. Kb1 {[%clk 0:02:46]}  Ba6 {[%clk 0:02:51]} 15. Bxa6 {[%clk 0:02:37]}  Rxa6 {[%clk 0:02:50]} 16. Ned4 {[%clk 0:02:37]}  O-O {[%clk 0:02:42]} 17. Rhe1 {[%clk 0:02:28]}  a4 {[%clk 0:02:39]} 18. f5 {[%clk 0:02:22]}  Nxd4 {[%clk 0:01:48]} 19. Nxd4 {[%clk 0:02:21]}  h6 {[%clk 0:00:49]} 20. f6 {[%clk 0:02:09]}  Rc8 {[%clk 0:00:33]} 21. fxg7 {[%clk 0:01:53]}  Kxg7 {[%clk 0:00:33]} 22. Re3 {[%clk 0:01:51]}  Qe7 {[%clk 0:00:25]} 23. Rg3+ {[%clk 0:01:42]}  Kh7 {[%clk 0:00:22]} 24. Qd3+ {[%clk 0:01:19]}  Kh8 {[%clk 0:00:21]} 25. Qxa6 {[%clk 0:01:19]}  Nc5 {[%clk 0:00:21]} 26. Qxc8+ {[%clk 0:01:18]} 1-0


[Site "https://www.chess.com"]

[Event "Titled Tuesday Blitz May 4 2021"]
[White "Purtseladze, Maka"]
[Black "Kollars, Dmitrij"]
[WhiteFideId "13602659"]
[BlackFideId "12909572"]
[WhiteElo "2178"]
[BlackElo "2576"]
[Result "0-1"]
[Round "01"]
[TimeControl "180+1"]
[Date "2021.05.04"]
[WhiteClock "0:00:09"]
[BlackClock "0:00:23"]

1. d4 {[%clk 0:03:00]}  Nf6 {[%clk 0:02:58]} 2. Bg5 {[%clk 0:02:59]}  Ne4 {[%clk 0:02:57]} 3. Bf4 {[%clk 0:02:59]}  c5 {[%clk 0:02:56]} 4. e3 {[%clk 0:03:00]}  Qb6 {[%clk 0:02:52]} 5. Nc3 {[%clk 0:02:56]}  Nxc3 {[%clk 0:02:39]} 6. bxc3 {[%clk 0:02:57]}  e6 {[%clk 0:02:40]} 7. a4 {[%clk 0:02:51]}  Qa5 {[%clk 0:02:36]} 8. Qd2 {[%clk 0:02:51]}  cxd4 {[%clk 0:02:32]} 9. exd4 {[%clk 0:02:44]}  Nc6 {[%clk 0:02:31]} 10. Nf3 {[%clk 0:02:35]}  Be7 {[%clk 0:02:26]} 11. Bd3 {[%clk 0:02:34]}  O-O {[%clk 0:02:26]} 12. O-O {[%clk 0:02:31]}  b6 {[%clk 0:02:25]} 13. Rfb1 {[%clk 0:02:28]}  Ba6 {[%clk 0:02:15]} 14. Bxa6 {[%clk 0:02:20]}  Qxa6 {[%clk 0:02:15]} 15. Rb5 {[%clk 0:02:21]}  d5 {[%clk 0:02:13]} 16. Ne5 {[%clk 0:01:58]}  Nxe5 {[%clk 0:02:10]} 17. Bxe5 {[%clk 0:01:59]}  Rac8 {[%clk 0:02:03]} 18. Qd3 {[%clk 0:01:54]}  Rc4 {[%clk 0:01:58]} 19. Rb3 {[%clk 0:01:24]}  Qb7 {[%clk 0:01:44]} 20. a5 {[%clk 0:01:22]}  b5 {[%clk 0:01:43]} 21. a6 {[%clk 0:01:19]}  Qc6 {[%clk 0:01:44]} 22. Bf4 {[%clk 0:01:15]}  Rc8 {[%clk 0:01:38]} 23. Bd2 {[%clk 0:01:14]}  h6 {[%clk 0:01:27]} 24. g3 {[%clk 0:01:08]}  Rb8 {[%clk 0:01:22]} 25. Kg2 {[%clk 0:00:56]}  Rb6 {[%clk 0:01:21]} 26. Rab1 {[%clk 0:00:56]}  Bf6 {[%clk 0:01:10]} 27. f4 {[%clk 0:00:54]}  h5 {[%clk 0:01:08]} 28. Qf3 {[%clk 0:00:50]}  g6 {[%clk 0:01:07]} 29. h3 {[%clk 0:00:50]}  Rxa6 {[%clk 0:00:35]} 30. Rxb5 {[%clk 0:00:49]}  Rb6 {[%clk 0:00:35]} 31. Rxb6 {[%clk 0:00:46]}  axb6 {[%clk 0:00:36]} 32. Rb3 {[%clk 0:00:43]}  b5 {[%clk 0:00:36]} 33. Qd1 {[%clk 0:00:38]}  Ra4 {[%clk 0:00:26]} 34. Qb1 {[%clk 0:00:36]}  Qc4 {[%clk 0:00:26]} 35. Kf2 {[%clk 0:00:31]}  h4 {[%clk 0:00:26]} 36. g4 {[%clk 0:00:28]}  Ra5 {[%clk 0:00:26]} 37. Rb4 {[%clk 0:00:26]}  Qc6 {[%clk 0:00:26]} 38. g5 {[%clk 0:00:23]}  Be7 {[%clk 0:00:26]} 39. Kf3 {[%clk 0:00:24]}  Bxb4 {[%clk 0:00:25]} 40. Qxb4 {[%clk 0:00:25]}  Ra7 {[%clk 0:00:24]} 41. Kg4 {[%clk 0:00:20]}  Qc4 {[%clk 0:00:21]} 42. Qd6 {[%clk 0:00:15]}  Qe2+ {[%clk 0:00:20]} 43. Kxh4 {[%clk 0:00:15]}  Qf2+ {[%clk 0:00:21]} 44. Kg4 {[%clk 0:00:15]}  Qg2+ {[%clk 0:00:22]} 45. Kh4 {[%clk 0:00:15]}  Ra8 {[%clk 0:00:22]} 46. Be1 {[%clk 0:00:12]}  Qe2 {[%clk 0:00:19]} 47. Qe5 {[%clk 0:00:06]}  Qxe5 {[%clk 0:00:19]} 48. fxe5 {[%clk 0:00:07]}  Ra2 {[%clk 0:00:20]} 49. Kg3 {[%clk 0:00:06]}  Rxc2 {[%clk 0:00:20]} 50. Kf3 {[%clk 0:00:07]}  Kf8 {[%clk 0:00:21]} 51. h4 {[%clk 0:00:07]}  Ke7 {[%clk 0:00:21]} 52. Ke3 {[%clk 0:00:08]}  Kd7 {[%clk 0:00:21]} 53. Kd3 {[%clk 0:00:09]}  Rh2 {[%clk 0:00:22]} 54. Bd2 {[%clk 0:00:10]}  Rh3+ {[%clk 0:00:22]} 55. Kc2 {[%clk 0:00:10]}  Kc6 {[%clk 0:00:23]} 56. Be1 {[%clk 0:00:10]}  b4 {[%clk 0:00:22]} 57. cxb4 {[%clk 0:00:09]}  Kb5 {[%clk 0:00:23]} 58. Kd2 {[%clk 0:00:08]}  Kxb4 {[%clk 0:00:22]} 59. Bf2 {[%clk 0:00:09]}  Kc4 {[%clk 0:00:23]} 60. Ke2 {[%clk 0:00:09]}  Rh2 {[%clk 0:00:23]} 0-1


[Site "https://www.chess.com"]

[Event "Titled Tuesday Blitz May 4 2021"]
[White "Quirke, Jeffrey"]
[Black "Gevorgyan, David Sh."]
[WhiteFideId "2013029"]
[BlackFideId "13303244"]
[WhiteElo "2242"]
[BlackElo "2255"]
[Result "0-1"]
[Round "01"]
[TimeControl "180+1"]
[Date "2021.05.04"]
[WhiteClock "0:00:02"]
[BlackClock "0:01:07"]

1. d4 {[%clk 0:03:00]}  Nf6 {[%clk 0:03:00]} 2. c4 {[%clk 0:03:01]}  g6 {[%clk 0:03:00]} 3. Nc3 {[%clk 0:03:01]}  d6 {[%clk 0:03:00]} 4. e4 {[%clk 0:03:00]}  Bg7 {[%clk 0:03:01]} 5. Be2 {[%clk 0:03:00]}  O-O {[%clk 0:03:01]} 6. Be3 {[%clk 0:03:00]}  Nbd7 {[%clk 0:02:58]} 7. Nf3 {[%clk 0:02:59]}  e5 {[%clk 0:02:58]} 8. O-O {[%clk 0:02:59]}  c6 {[%clk 0:02:57]} 9. Qc2 {[%clk 0:02:57]}  Qe7 {[%clk 0:02:57]} 10. Rad1 {[%clk 0:02:48]}  Re8 {[%clk 0:02:56]} 11. d5 {[%clk 0:02:40]}  c5 {[%clk 0:02:56]} 12. Ne1 {[%clk 0:02:38]}  Rf8 {[%clk 0:02:55]} 13. Nd3 {[%clk 0:02:36]}  Ne8 {[%clk 0:02:55]} 14. f4 {[%clk 0:02:13]}  exf4 {[%clk 0:02:54]} 15. Bxf4 {[%clk 0:02:12]}  Ne5 {[%clk 0:02:50]} 16. Nxe5 {[%clk 0:01:53]}  Bxe5 {[%clk 0:02:50]} 17. Qd2 {[%clk 0:01:35]}  Bd4+ {[%clk 0:02:13]} 18. Kh1 {[%clk 0:01:34]}  Bg7 {[%clk 0:01:53]} 19. Bd3 {[%clk 0:01:32]}  Bg4 {[%clk 0:01:49]} 20. Rde1 {[%clk 0:01:31]}  Be5 {[%clk 0:01:42]} 21. h3 {[%clk 0:01:29]}  Bd7 {[%clk 0:01:39]} 22. Bg5 {[%clk 0:01:12]}  f6 {[%clk 0:01:39]} 23. Bh6 {[%clk 0:01:07]}  Ng7 {[%clk 0:01:39]} 24. Rf3 {[%clk 0:00:38]}  Rf7 {[%clk 0:01:38]} 25. Ref1 {[%clk 0:00:38]}  a6 {[%clk 0:01:37]} 26. b3 {[%clk 0:00:15]}  Nh5 {[%clk 0:01:33]} 27. Ne2 {[%clk 0:00:09]}  b5 {[%clk 0:01:29]} 28. g4 {[%clk 0:00:08]}  Ng7 {[%clk 0:01:27]} 29. Ng3 {[%clk 0:00:03]}  Re8 {[%clk 0:01:23]} 30. Kg2 {[%clk 0:00:03]}  bxc4 {[%clk 0:01:18]} 31. bxc4 {[%clk 0:00:03]}  Rb8 {[%clk 0:01:16]} 32. Ne2 {[%clk 0:00:03]}  Rb2 {[%clk 0:01:14]} 33. Qc1 {[%clk 0:00:03]}  Rxa2 {[%clk 0:01:10]} 34. g5 {[%clk 0:00:04]}  f5 {[%clk 0:01:07]} 35. exf5 {[%clk 0:00:03]}  Nxf5 {[%clk 0:01:07]} 36. Bxf5 {[%clk 0:00:02]}  Bxf5 {[%clk 0:01:07]} 0-1


[Site "https://www.chess.com"]

[Event "Titled Tuesday Blitz May 4 2021"]
[White "Rodriguez, Santiago"]
[Black "Sadhwani, Raunak"]
[WhiteFideId "3000591"]
[BlackFideId "35093487"]
[WhiteElo "2256"]
[BlackElo "2514"]
[Result "0-1"]
[Round "01"]
[TimeControl "180+1"]
[Date "2021.05.04"]
[WhiteClock "0:00:01"]
[BlackClock "0:00:53"]

1. d4 {[%clk 0:02:55]}  d6 {[%clk 0:02:57]} 2. e4 {[%clk 0:02:55]}  Nf6 {[%clk 0:02:57]} 3. Nc3 {[%clk 0:02:55]}  g6 {[%clk 0:02:58]} 4. Be3 {[%clk 0:02:54]}  a6 {[%clk 0:02:58]} 5. h4 {[%clk 0:02:54]}  b5 {[%clk 0:02:57]} 6. f3 {[%clk 0:02:53]}  Nbd7 {[%clk 0:02:54]} 7. Qd2 {[%clk 0:02:53]}  Nb6 {[%clk 0:02:53]} 8. O-O-O {[%clk 0:02:43]}  b4 {[%clk 0:02:47]} 9. Nb1 {[%clk 0:02:42]}  a5 {[%clk 0:02:46]} 10. g4 {[%clk 0:02:21]}  h5 {[%clk 0:02:43]} 11. g5 {[%clk 0:02:20]}  Nfd7 {[%clk 0:02:43]} 12. Nh3 {[%clk 0:02:17]}  Bb7 {[%clk 0:02:40]} 13. Nf4 {[%clk 0:01:57]}  Bg7 {[%clk 0:02:37]} 14. Bd3 {[%clk 0:01:52]}  e5 {[%clk 0:02:20]} 15. Ne2 {[%clk 0:01:46]}  Qe7 {[%clk 0:02:08]} 16. d5 {[%clk 0:01:24]}  c6 {[%clk 0:01:47]} 17. dxc6 {[%clk 0:01:11]}  Bxc6 {[%clk 0:01:48]} 18. c3 {[%clk 0:00:53]}  O-O {[%clk 0:01:45]} 19. cxb4 {[%clk 0:00:47]}  axb4 {[%clk 0:01:46]} 20. Qxb4 {[%clk 0:00:47]}  Rfb8 {[%clk 0:01:45]} 21. Bxb6 {[%clk 0:00:17]}  Rxb6 {[%clk 0:01:43]} 22. Qd2 {[%clk 0:00:17]}  Rxa2 {[%clk 0:01:43]} 23. Nec3 {[%clk 0:00:17]}  Nc5 {[%clk 0:01:39]} 24. Bc4 {[%clk 0:00:15]}  Raxb2 {[%clk 0:01:31]} 25. Qxb2 {[%clk 0:00:16]}  Rxb2 {[%clk 0:01:31]} 26. Kxb2 {[%clk 0:00:16]}  Qb7+ {[%clk 0:01:29]} 27. Kc2 {[%clk 0:00:15]}  Qb4 {[%clk 0:01:26]} 28. Bd5 {[%clk 0:00:14]}  Bd7 {[%clk 0:01:16]} 29. Kd2 {[%clk 0:00:09]}  Ne6 {[%clk 0:01:10]} 30. Ke2 {[%clk 0:00:07]}  Nf4+ {[%clk 0:01:10]} 31. Kf2 {[%clk 0:00:07]}  Kf8 {[%clk 0:00:59]} 32. Rd2 {[%clk 0:00:07]}  f6 {[%clk 0:00:55]} 33. gxf6 {[%clk 0:00:05]}  Bxf6 {[%clk 0:00:56]} 34. Rhd1 {[%clk 0:00:04]}  Bxh4+ {[%clk 0:00:56]} 35. Kg1 {[%clk 0:00:05]}  Bg5 {[%clk 0:00:56]} 36. Ra2 {[%clk 0:00:01]}  Qb6+ {[%clk 0:00:54]} 37. Kh2 {[%clk 0:00:01]}  Qe3 {[%clk 0:00:53]} 0-1


[Site "https://www.chess.com"]

[Event "Titled Tuesday Blitz May 4 2021"]
[White "Roque Sola, Gisela"]
[Black "Senthil Maran K"]
[WhiteFideId "5120241"]
[BlackFideId "25035681"]
[WhiteElo "1863"]
[BlackElo "2194"]
[Result "0-1"]
[Round "01"]
[TimeControl "180+1"]
[Date "2021.05.04"]
[WhiteClock "0:00:10"]
[BlackClock "0:00:21"]

1. c4 {[%clk 0:03:00]}  c6 {[%clk 0:02:58]} 2. Nf3 {[%clk 0:02:58]}  d5 {[%clk 0:02:58]} 3. b3 {[%clk 0:02:57]}  e6 {[%clk 0:02:57]} 4. g3 {[%clk 0:02:55]}  Nf6 {[%clk 0:02:55]} 5. Bb2 {[%clk 0:02:55]}  Bd6 {[%clk 0:02:55]} 6. Bg2 {[%clk 0:02:54]}  Qe7 {[%clk 0:02:55]} 7. O-O {[%clk 0:02:52]}  e5 {[%clk 0:02:55]} 8. d3 {[%clk 0:02:52]}  O-O {[%clk 0:02:53]} 9. Nbd2 {[%clk 0:02:27]}  Bf5 {[%clk 0:02:50]} 10. Re1 {[%clk 0:02:18]}  e4 {[%clk 0:02:46]} 11. Nh4 {[%clk 0:02:15]}  Bg6 {[%clk 0:02:37]} 12. Nxg6 {[%clk 0:02:14]}  fxg6 {[%clk 0:02:37]} 13. dxe4 {[%clk 0:02:13]}  Nxe4 {[%clk 0:02:30]} 14. Nxe4 {[%clk 0:02:10]}  dxe4 {[%clk 0:02:30]} 15. Bxe4 {[%clk 0:01:55]}  Bb4 {[%clk 0:02:29]} 16. Bg2 {[%clk 0:01:17]}  Bxe1 {[%clk 0:02:27]} 17. Qxe1 {[%clk 0:01:17]}  Nd7 {[%clk 0:02:27]} 18. Rd1 {[%clk 0:01:16]}  Ne5 {[%clk 0:02:25]} 19. Qc3 {[%clk 0:01:15]}  Rae8 {[%clk 0:02:23]} 20. Bh3 {[%clk 0:01:05]}  g5 {[%clk 0:02:18]} 21. c5 {[%clk 0:00:47]}  g4 {[%clk 0:02:15]} 22. Bg2 {[%clk 0:00:46]}  Qf7 {[%clk 0:02:07]} 23. f4 {[%clk 0:00:37]}  gxf3 {[%clk 0:02:04]} 24. exf3 {[%clk 0:00:37]}  Re7 {[%clk 0:01:55]} 25. f4 {[%clk 0:00:37]}  Ng4 {[%clk 0:01:48]} 26. Bf1 {[%clk 0:00:36]}  Nf6 {[%clk 0:01:45]} 27. Bc4 {[%clk 0:00:36]}  Nd5 {[%clk 0:01:45]} 28. Qf3 {[%clk 0:00:29]}  Rd7 {[%clk 0:01:41]} 29. b4 {[%clk 0:00:20]}  Rfd8 {[%clk 0:01:39]} 30. b5 {[%clk 0:00:19]}  Kh8 {[%clk 0:01:38]} 31. h4 {[%clk 0:00:17]}  Qf8 {[%clk 0:01:29]} 32. h5 {[%clk 0:00:17]}  Qxc5+ {[%clk 0:01:23]} 33. Kh2 {[%clk 0:00:16]}  Nf6 {[%clk 0:01:15]} 34. h6 {[%clk 0:00:16]}  Qxc4 {[%clk 0:00:49]} 35. hxg7+ {[%clk 0:00:15]}  Kxg7 {[%clk 0:00:50]} 36. Qg4+ {[%clk 0:00:14]}  Kf7 {[%clk 0:00:50]} 37. Rxd7+ {[%clk 0:00:14]}  Rxd7 {[%clk 0:00:50]} 38. Bxf6 {[%clk 0:00:14]}  Rd2+ {[%clk 0:00:42]} 39. Kh3 {[%clk 0:00:14]}  Qf1+ {[%clk 0:00:33]} 40. Kh4 {[%clk 0:00:13]}  Rh2+ {[%clk 0:00:20]} 41. Kg5 {[%clk 0:00:13]}  h6+ {[%clk 0:00:20]} 42. Kf5 {[%clk 0:00:11]}  Qd3+ {[%clk 0:00:20]} 43. Ke5 {[%clk 0:00:10]}  Qd5# {[%clk 0:00:21]} 0-1


[Site "https://www.chess.com"]

[Event "Titled Tuesday Blitz May 4 2021"]
[White "Royal, Shreyas"]
[Black "Keymer, Vincent"]
[WhiteFideId "448869"]
[BlackFideId "12940690"]
[WhiteElo "1931"]
[BlackElo "2474"]
[Result "0-1"]
[Round "01"]
[TimeControl "180+1"]
[Date "2021.05.04"]
[WhiteClock "0:00:09"]
[BlackClock "0:01:14"]

1. d4 {[%clk 0:03:00]}  Nf6 {[%clk 0:02:59]} 2. c4 {[%clk 0:02:59]}  e6 {[%clk 0:03:00]} 3. g3 {[%clk 0:02:57]}  Bb4+ {[%clk 0:02:59]} 4. Bd2 {[%clk 0:02:57]}  Be7 {[%clk 0:02:59]} 5. Bg2 {[%clk 0:02:57]}  d5 {[%clk 0:03:00]} 6. Nf3 {[%clk 0:02:57]}  O-O {[%clk 0:03:00]} 7. O-O {[%clk 0:02:57]}  c6 {[%clk 0:03:01]} 8. Qc2 {[%clk 0:02:57]}  Nbd7 {[%clk 0:03:00]} 9. Rd1 {[%clk 0:02:55]}  b6 {[%clk 0:03:00]} 10. Ne5 {[%clk 0:02:44]}  Nxe5 {[%clk 0:02:57]} 11. dxe5 {[%clk 0:02:45]}  Nd7 {[%clk 0:02:58]} 12. Bc3 {[%clk 0:02:40]}  Bb7 {[%clk 0:02:48]} 13. b3 {[%clk 0:02:32]}  Qc7 {[%clk 0:02:45]} 14. Qb2 {[%clk 0:02:28]}  Rfd8 {[%clk 0:02:41]} 15. Nd2 {[%clk 0:02:28]}  Rac8 {[%clk 0:02:32]} 16. Nf1 {[%clk 0:02:24]}  h6 {[%clk 0:02:28]} 17. e4 {[%clk 0:02:23]}  dxc4 {[%clk 0:02:25]} 18. bxc4 {[%clk 0:02:23]}  Nc5 {[%clk 0:02:25]} 19. Qc2 {[%clk 0:02:21]}  b5 {[%clk 0:02:22]} 20. Nd2 {[%clk 0:02:14]}  Na4 {[%clk 0:02:21]} 21. Nb3 {[%clk 0:02:10]}  Nxc3 {[%clk 0:02:19]} 22. Qxc3 {[%clk 0:02:11]}  b4 {[%clk 0:02:20]} 23. Qb2 {[%clk 0:02:06]}  a5 {[%clk 0:02:20]} 24. Rac1 {[%clk 0:01:41]}  a4 {[%clk 0:02:18]} 25. Nd4 {[%clk 0:01:39]}  Qb6 {[%clk 0:02:12]} 26. Ne2 {[%clk 0:01:17]}  Bc5 {[%clk 0:02:09]} 27. Nf4 {[%clk 0:01:17]}  Bd4 {[%clk 0:02:09]} 28. Qc2 {[%clk 0:01:16]}  b3 {[%clk 0:02:05]} 29. axb3 {[%clk 0:01:16]}  axb3 {[%clk 0:02:06]} 30. Qe2 {[%clk 0:01:17]}  Bxe5 {[%clk 0:02:05]} 31. c5 {[%clk 0:01:14]}  Qb5 {[%clk 0:02:00]} 32. Nd3 {[%clk 0:01:11]}  Ba6 {[%clk 0:01:55]} 33. Bf1 {[%clk 0:01:08]}  Bd4 {[%clk 0:01:51]} 34. Qf3 {[%clk 0:01:03]}  Qa4 {[%clk 0:01:48]} 35. e5 {[%clk 0:00:53]}  b2 {[%clk 0:01:43]} 36. Rb1 {[%clk 0:00:53]}  Bxd3 {[%clk 0:01:43]} 37. Bxd3 {[%clk 0:00:50]}  Bxe5 {[%clk 0:01:42]} 38. Qe2 {[%clk 0:00:45]}  Bf6 {[%clk 0:01:40]} 39. Bc2 {[%clk 0:00:41]}  Qb4 {[%clk 0:01:38]} 40. Qh5 {[%clk 0:00:36]}  Qc3 {[%clk 0:01:33]} 41. Be4 {[%clk 0:00:33]}  Rxd1+ {[%clk 0:01:33]} 42. Rxd1 {[%clk 0:00:30]}  Rd8 {[%clk 0:01:32]} 43. Kg2 {[%clk 0:00:21]}  Rxd1 {[%clk 0:01:26]} 44. Qxd1 {[%clk 0:00:22]}  g6 {[%clk 0:01:26]} 45. Qb1 {[%clk 0:00:18]}  Kg7 {[%clk 0:01:24]} 46. h4 {[%clk 0:00:17]}  Qxc5 {[%clk 0:01:23]} 47. Qd3 {[%clk 0:00:16]}  h5 {[%clk 0:01:23]} 48. Qb1 {[%clk 0:00:15]}  Qb5 {[%clk 0:01:22]} 49. Qc2 {[%clk 0:00:15]}  c5 {[%clk 0:01:22]} 50. Bd3 {[%clk 0:00:15]}  c4 {[%clk 0:01:22]} 51. Be4 {[%clk 0:00:16]}  c3 {[%clk 0:01:22]} 52. Qb1 {[%clk 0:00:16]}  Bd4 {[%clk 0:01:21]} 53. Qc2 {[%clk 0:00:15]}  Qb6 {[%clk 0:01:20]} 54. f3 {[%clk 0:00:14]}  Bf6 {[%clk 0:01:14]} 55. Qb1 {[%clk 0:00:13]}  Qe3 {[%clk 0:01:14]} 56. Kh3 {[%clk 0:00:12]}  Bd4 {[%clk 0:01:14]} 57. Qc2 {[%clk 0:00:11]}  f5 {[%clk 0:01:15]} 58. Bd3 {[%clk 0:00:10]}  Qxf3 {[%clk 0:01:14]} 59. Bc4 {[%clk 0:00:09]}  Qh1+ {[%clk 0:01:14]} 0-1


[Site "https://www.chess.com"]